[Event "*** Titled Tuesday Blitz"]
[Site "Chess.com"]
[Date "2019.11.05"]
[Round "6"]
[White "Eloist"]
[Black "newauto"]
[Result "1/2-1/2"]
[WhiteElo "2202"]
[BlackElo "1903"]
[TimeControl "180+2"]
[EndTime "14:21:32 PST"]
[Termination "Game drawn - insufficient material"]

1. e4 {[%clk 0:03:00.8]} 1... c6 {[%clk 0:03:00.7]} 2. Nf3 {[%clk 0:03:00.7]}
2... d5 {[%clk 0:03:02.6]} 3. Nc3 {[%clk 0:03:01.4]} 3... dxe4 {[%clk
0:03:02.4]} 4. Nxe4 {[%clk 0:03:01.7]} 4... Bg4 {[%clk 0:03:03.4]} 5. h3 {[%clk
0:02:50.8]} 5... Bxf3 {[%clk 0:03:03.4]} 6. Qxf3 {[%clk 0:02:51.2]} 6... e6
{[%clk 0:03:03.9]} 7. b3 {[%clk 0:02:40]} 7... Nd7 {[%clk 0:02:55.9]} 8. Bb2
{[%clk 0:02:39.6]} 8... Ngf6 {[%clk 0:02:55.8]} 9. O-O-O {[%clk 0:02:33]} 9...
Nxe4 {[%clk 0:02:49.7]} 10. Qxe4 {[%clk 0:02:33.7]} 10... Nf6 {[%clk 0:02:50.3]}
11. Qe3 {[%clk 0:02:18.7]} 11... Qa5 {[%clk 0:02:45.8]} 12. Kb1 {[%clk
0:02:14.3]} 12... O-O-O {[%clk 0:02:30.9]} 13. g4 {[%clk 0:02:07.1]} 13... Bc5
{[%clk 0:02:24.3]} 14. d4 {[%clk 0:02:00.5]} 14... Ba3 {[%clk 0:02:01.1]} 15. c4
{[%clk 0:01:59.3]} 15... Bxb2 {[%clk 0:01:53.3]} 16. Kxb2 {[%clk 0:02:01.2]}
16... c5 {[%clk 0:01:46.2]} 17. Qe5 {[%clk 0:01:48]} 17... Rhg8 {[%clk
0:01:14.3]} 18. Bg2 {[%clk 0:01:42.7]} 18... Nd7 {[%clk 0:01:13.3]} 19. Qd6
{[%clk 0:01:34.6]} 19... cxd4 {[%clk 0:00:58.5]} 20. Qxd4 {[%clk 0:01:26.9]}
20... Qe5 {[%clk 0:00:52.8]} 21. Rhe1 {[%clk 0:01:21]} 21... Qxd4+ {[%clk
0:00:51.7]} 22. Rxd4 {[%clk 0:01:22.9]} 22... Nc5 {[%clk 0:00:46.6]} 23. Red1
{[%clk 0:01:23.1]} 23... Rxd4 {[%clk 0:00:36.7]} 24. Rxd4 {[%clk 0:01:23.2]}
24... Rd8 {[%clk 0:00:37.5]} 25. Kc3 {[%clk 0:01:17.5]} 25... a5 {[%clk
0:00:30.6]} 26. f4 {[%clk 0:01:07.2]} 26... f6 {[%clk 0:00:30.4]} 27. Rxd8+
{[%clk 0:01:03.8]} 27... Kxd8 {[%clk 0:00:30.8]} 28. a3 {[%clk 0:01:01.8]} 28...
b6 {[%clk 0:00:31.3]} 29. b4 {[%clk 0:01:02.2]} 29... axb4+ {[%clk 0:00:31.6]}
30. axb4 {[%clk 0:01:03.1]} 30... Nd7 {[%clk 0:00:31.8]} 31. Kb3 {[%clk
0:00:55]} 31... Kc7 {[%clk 0:00:32.1]} 32. Ka4 {[%clk 0:00:55.1]} 32... e5
{[%clk 0:00:30.1]} 33. fxe5 {[%clk 0:00:42.7]} 33... Nxe5 {[%clk 0:00:28.3]} 34.
Kb5 {[%clk 0:00:43.4]} 34... Nd3 {[%clk 0:00:27.5]} 35. Be4 {[%clk 0:00:35.1]}
35... Nf4 {[%clk 0:00:25.8]} 36. h4 {[%clk 0:00:32.6]} 36... h5 {[%clk
0:00:19.3]} 37. gxh5 {[%clk 0:00:31.8]} 37... Nxh5 {[%clk 0:00:19.9]} 38. c5
{[%clk 0:00:32]} 38... bxc5 {[%clk 0:00:19.8]} 39. Kxc5 {[%clk 0:00:33.4]} 39...
Ng3 {[%clk 0:00:19.9]} 40. Bd3 {[%clk 0:00:31.9]} 40... f5 {[%clk 0:00:20.3]}
41. b5 {[%clk 0:00:32.1]} 41... f4 {[%clk 0:00:20.8]} 42. b6+ {[%clk 0:00:32.4]}
42... Kb8 {[%clk 0:00:22.3]} 43. Ba6 {[%clk 0:00:23.2]} 43... f3 {[%clk
0:00:21.9]} 44. Kd4 {[%clk 0:00:24]} 44... f2 {[%clk 0:00:22.7]} 45. Ke5 {[%clk
0:00:23]} 45... f1=Q {[%clk 0:00:24.6]} 46. Bxf1 {[%clk 0:00:23.5]} 46... Nxf1
{[%clk 0:00:25.9]} 47. Kf5 {[%clk 0:00:23.6]} 47... Kb7 {[%clk 0:00:25.2]} 48.
Kg6 {[%clk 0:00:24.3]} 48... Ng3 {[%clk 0:00:24.4]} 49. Kxg7 {[%clk 0:00:24.5]}
49... Nf5+ {[%clk 0:00:25.1]} 50. Kf6 {[%clk 0:00:24.1]} 50... Nxh4 {[%clk
0:00:27]} 51. Kg5 {[%clk 0:00:25]} 51... Kxb6 {[%clk 0:00:27.1]} 1/2-1/2

[Event "*** Titled Tuesday Blitz"]
[Site "Chess.com"]
[Date "2019.11.05"]
[Round "6"]
[White "Philosopherrr"]
[Black "vlad_Sid"]
[Result "1-0"]
[WhiteElo "2363"]
[BlackElo "2494"]
[TimeControl "180+2"]
[EndTime "14:21:33 PST"]
[Termination "Philosopherrr won by checkmate"]

1. e4 {[%clk 0:03:01.9]} 1... c5 {[%clk 0:03:00.3]} 2. Nf3 {[%clk 0:02:59.2]}
2... e6 {[%clk 0:03:01.4]} 3. d4 {[%clk 0:02:57.7]} 3... cxd4 {[%clk 0:03:03.3]}
4. Nxd4 {[%clk 0:02:58.9]} 4... Nc6 {[%clk 0:03:03.8]} 5. Nc3 {[%clk 0:02:58]}
5... Nf6 {[%clk 0:03:04.3]} 6. Ndb5 {[%clk 0:02:54.1]} 6... Bb4 {[%clk
0:03:04.7]} 7. a3 {[%clk 0:02:54.8]} 7... Bxc3+ {[%clk 0:03:06.2]} 8. Nxc3
{[%clk 0:02:56.1]} 8... d5 {[%clk 0:03:07.8]} 9. Bd3 {[%clk 0:02:56.1]} 9... d4
{[%clk 0:03:08.5]} 10. Ne2 {[%clk 0:02:57.1]} 10... e5 {[%clk 0:03:10.4]} 11.
Ng3 {[%clk 0:02:58.1]} 11... O-O {[%clk 0:03:01.8]} 12. O-O {[%clk 0:02:53.8]}
12... Nd7 {[%clk 0:02:49.3]} 13. Qh5 {[%clk 0:02:49.5]} 13... Nc5 {[%clk
0:02:47.8]} 14. Bg5 {[%clk 0:02:48.7]} 14... f6 {[%clk 0:02:45.6]} 15. Bd2
{[%clk 0:02:48.9]} 15... Be6 {[%clk 0:02:42.5]} 16. f4 {[%clk 0:02:46.5]} 16...
Bf7 {[%clk 0:02:41.3]} 17. Qg4 {[%clk 0:02:46.2]} 17... exf4 {[%clk 0:02:26.6]}
18. Nf5 {[%clk 0:02:40.5]} 18... Bg6 {[%clk 0:02:18.6]} 19. Bxf4 {[%clk
0:02:41.4]} 19... Ne5 {[%clk 0:02:14.4]} 20. Bxe5 {[%clk 0:02:42.3]} 20... fxe5
{[%clk 0:02:16.3]} 21. Nh4 {[%clk 0:02:23.8]} 21... Bf7 {[%clk 0:01:58.6]} 22.
Rxf7 {[%clk 0:01:54.3]} 22... Rxf7 {[%clk 0:01:14.2]} 23. Bc4 {[%clk 0:01:54.8]}
23... Qc7 {[%clk 0:00:50.5]} 24. Rf1 {[%clk 0:01:45.9]} 24... Rf8 {[%clk
0:00:51.3]} 25. Nf5 {[%clk 0:01:47.3]} 25... Kh8 {[%clk 0:00:47.2]} 26. Bxf7
{[%clk 0:01:34]} 26... Qxf7 {[%clk 0:00:47.9]} 27. Ng3 {[%clk 0:01:23.2]} 27...
Qe7 {[%clk 0:00:44.7]} 28. Rxf8+ {[%clk 0:01:23.2]} 28... Qxf8 {[%clk
0:00:46.6]} 29. Qg5 {[%clk 0:01:22.7]} 29... Qf6 {[%clk 0:00:44.7]} 30. Qg4
{[%clk 0:01:19.7]} 30... Ne6 {[%clk 0:00:32.1]} 31. Nh5 {[%clk 0:01:15.4]} 31...
Qh6 {[%clk 0:00:30.1]} 32. h4 {[%clk 0:01:11.5]} 32... Kg8 {[%clk 0:00:21.5]}
33. Qf5 {[%clk 0:01:08.1]} 33... Qg6 {[%clk 0:00:18]} 34. Qxe5 {[%clk
0:01:06.1]} 34... Kf7 {[%clk 0:00:15.1]} 35. Ng3 {[%clk 0:01:03.2]} 35... Qg4
{[%clk 0:00:15.5]} 36. Nf5 {[%clk 0:01:00.2]} 36... Qf4 {[%clk 0:00:14.5]} 37.
Qxf4 {[%clk 0:00:57.3]} 37... Nxf4 {[%clk 0:00:16.4]} 38. Nxd4 {[%clk
0:00:58.9]} 38... Kf6 {[%clk 0:00:17.7]} 39. g3 {[%clk 0:00:57.5]} 39... Ng6
{[%clk 0:00:19.1]} 40. Nf3 {[%clk 0:00:58.2]} 40... Ne7 {[%clk 0:00:19.7]} 41.
Kf2 {[%clk 0:00:59.5]} 41... Nc6 {[%clk 0:00:21]} 42. Ke3 {[%clk 0:01:00.9]}
42... Ke6 {[%clk 0:00:22.6]} 43. Nd4+ {[%clk 0:01:01.6]} 43... Ke5 {[%clk
0:00:22.8]} 44. Nxc6+ {[%clk 0:01:02.6]} 44... bxc6 {[%clk 0:00:24.7]} 45. b4
{[%clk 0:01:03.8]} 45... a6 {[%clk 0:00:25.7]} 46. c4 {[%clk 0:01:04.7]} 46...
h5 {[%clk 0:00:27.6]} 47. a4 {[%clk 0:00:59.9]} 47... g6 {[%clk 0:00:26.8]} 48.
a5 {[%clk 0:01:01.3]} 48... Ke6 {[%clk 0:00:26.7]} 49. Kf4 {[%clk 0:01:01.9]}
49... Kd6 {[%clk 0:00:28.6]} 50. e5+ {[%clk 0:01:02.9]} 50... Ke6 {[%clk
0:00:29.8]} 51. Ke4 {[%clk 0:01:04]} 51... Kd7 {[%clk 0:00:31.6]} 52. Kd4 {[%clk
0:01:04.4]} 52... Ke7 {[%clk 0:00:33.5]} 53. Kc5 {[%clk 0:01:05.4]} 53... Kd7
{[%clk 0:00:35.4]} 54. e6+ {[%clk 0:01:06.4]} 54... Kxe6 {[%clk 0:00:36.2]} 55.
Kxc6 {[%clk 0:01:07.7]} 55... Kf5 {[%clk 0:00:38.1]} 56. b5 {[%clk 0:01:09.3]}
56... Kg4 {[%clk 0:00:40]} 57. bxa6 {[%clk 0:01:10.5]} 57... Kxg3 {[%clk
0:00:41.9]} 58. a7 {[%clk 0:01:12.1]} 58... Kxh4 {[%clk 0:00:43.8]} 59. a8=Q
{[%clk 0:01:13.8]} 59... g5 {[%clk 0:00:45.7]} 60. Qd8 {[%clk 0:01:14.5]} 60...
Kg4 {[%clk 0:00:46.6]} 61. a6 {[%clk 0:01:15.4]} 61... h4 {[%clk 0:00:48.5]} 62.
a7 {[%clk 0:01:16.9]} 62... h3 {[%clk 0:00:50.4]} 63. a8=Q {[%clk 0:01:18.2]}
63... h2 {[%clk 0:00:52]} 64. Qd7+ {[%clk 0:01:19.6]} 64... Kh4 {[%clk
0:00:53.2]} 65. Qh7+ {[%clk 0:01:19.8]} 65... Kg3 {[%clk 0:00:54.1]} 66. Kc5
{[%clk 0:01:21.2]} 66... g4 {[%clk 0:00:54.6]} 67. Qb8+ {[%clk 0:01:20.5]} 67...
Kf3 {[%clk 0:00:54.9]} 68. Qhxh2 {[%clk 0:01:21.6]} 68... g3 {[%clk 0:00:56.5]}
69. Qbxg3+ {[%clk 0:01:22.3]} 69... Ke4 {[%clk 0:00:57.3]} 70. Qf4+ {[%clk
0:01:23.1]} 70... Kd3 {[%clk 0:00:58.4]} 71. Qhd2# {[%clk 0:01:24.4]} 1-0

[Event "*** Titled Tuesday Blitz"]
[Site "Chess.com"]
[Date "2019.11.05"]
[Round "6"]
[White "BlueWizzard"]
[Black "olksuna"]
[Result "0-1"]
[WhiteElo "2819"]
[BlackElo "2608"]
[TimeControl "180+2"]
[EndTime "14:21:40 PST"]
[Termination "olksuna won by resignation"]

1. d4 {[%clk 0:03:01.9]} 1... d5 {[%clk 0:02:58.4]} 2. Nf3 {[%clk 0:03:03.4]}
2... Nf6 {[%clk 0:02:56.7]} 3. Bf4 {[%clk 0:03:05]} 3... e6 {[%clk 0:02:57]} 4.
e3 {[%clk 0:03:05.9]} 4... Bd6 {[%clk 0:02:58]} 5. Bg3 {[%clk 0:03:07.1]} 5...
c5 {[%clk 0:02:59.3]} 6. Bb5+ {[%clk 0:03:06.9]} 6... Nc6 {[%clk 0:02:58.2]} 7.
Nbd2 {[%clk 0:03:07.7]} 7... O-O {[%clk 0:02:57.4]} 8. O-O {[%clk 0:03:07.7]}
8... Bxg3 {[%clk 0:02:55.3]} 9. hxg3 {[%clk 0:03:08.6]} 9... Qb6 {[%clk
0:02:50.8]} 10. a4 {[%clk 0:02:49]} 10... cxd4 {[%clk 0:02:48.5]} 11. exd4
{[%clk 0:02:37.1]} 11... Nxd4 {[%clk 0:02:48]} 12. Nxd4 {[%clk 0:02:34.1]} 12...
Qxd4 {[%clk 0:02:49]} 13. c3 {[%clk 0:02:35.8]} 13... Qb6 {[%clk 0:02:36.3]} 14.
Qc2 {[%clk 0:02:28.4]} 14... e5 {[%clk 0:02:37.2]} 15. Rfe1 {[%clk 0:02:29.4]}
15... e4 {[%clk 0:02:34.8]} 16. c4 {[%clk 0:02:27.8]} 16... Ng4 {[%clk
0:01:57.6]} 17. Nf1 {[%clk 0:02:27.8]} 17... Bf5 {[%clk 0:01:56.3]} 18. a5
{[%clk 0:01:54.4]} 18... Qf6 {[%clk 0:01:52.2]} 19. Qd1 {[%clk 0:01:36]} 19...
d4 {[%clk 0:01:46.8]} 20. f3 {[%clk 0:01:36.5]} 20... exf3 {[%clk 0:01:25.8]}
21. Qxf3 {[%clk 0:01:36.5]} 21... d3 {[%clk 0:01:24.4]} 22. Kh1 {[%clk
0:01:16.4]} 22... Rad8 {[%clk 0:01:09.2]} 23. Rad1 {[%clk 0:01:05.1]} 23... d2
{[%clk 0:01:02.7]} 24. Re2 {[%clk 0:01:00.2]} 24... Ne5 {[%clk 0:00:59.4]} 25.
Qf4 {[%clk 0:00:47.4]} 25... Bg4 {[%clk 0:00:50.3]} 26. Qxf6 {[%clk 0:00:30.5]}
26... gxf6 {[%clk 0:00:52.2]} 27. Rdxd2 {[%clk 0:00:32.2]} 27... Bxe2 {[%clk
0:00:50.8]} 28. Rxe2 {[%clk 0:00:34.1]} 28... a6 {[%clk 0:00:49.6]} 29. Ba4
{[%clk 0:00:34.6]} 29... Nxc4 {[%clk 0:00:51.1]} 30. Kh2 {[%clk 0:00:31.5]}
30... Nxa5 {[%clk 0:00:51.8]} 31. Rf2 {[%clk 0:00:31.9]} 31... Nc4 {[%clk
0:00:47.7]} 32. Bb3 {[%clk 0:00:31.8]} 32... b5 {[%clk 0:00:45.1]} 33. Rxf6
{[%clk 0:00:31.6]} 33... Rd6 {[%clk 0:00:45.8]} 34. Rf5 {[%clk 0:00:31.1]} 34...
Re8 {[%clk 0:00:46.3]} 35. g4 {[%clk 0:00:32.2]} 35... Re2 {[%clk 0:00:43.5]}
36. Ng3 {[%clk 0:00:21]} 36... Rxb2 {[%clk 0:00:35.3]} 37. Bxc4 {[%clk
0:00:22.3]} 37... bxc4 {[%clk 0:00:36.4]} 38. Rc5 {[%clk 0:00:24.1]} 38... Rdd2
{[%clk 0:00:24.6]} 39. Nf5 {[%clk 0:00:24.6]} 39... h6 {[%clk 0:00:19]} 40. Rc8+
{[%clk 0:00:20.3]} 40... Kh7 {[%clk 0:00:19.7]} 41. Rc7 {[%clk 0:00:22.1]} 41...
Rxg2+ {[%clk 0:00:19.6]} 42. Kh3 {[%clk 0:00:23.4]} 42... Kg6 {[%clk 0:00:19.5]}
43. Rc6+ {[%clk 0:00:24.3]} 43... f6 {[%clk 0:00:19.6]} 44. Rc7 {[%clk
0:00:25.2]} 44... Kg5 {[%clk 0:00:21]} 45. Rxc4 {[%clk 0:00:19.5]} 45... Rgc2
{[%clk 0:00:21.1]} 46. Re4 {[%clk 0:00:17.1]} 46... Rb3+ {[%clk 0:00:22]} 47.
Ng3 {[%clk 0:00:18.2]} 47... Rcc3 {[%clk 0:00:22.7]} 48. Kh2 {[%clk 0:00:19]}
48... Rxg3 {[%clk 0:00:24]} 49. Ra4 {[%clk 0:00:20.3]} 49... Ra3 {[%clk
0:00:22.9]} 50. Rb4 {[%clk 0:00:21.2]} 50... Rgb3 {[%clk 0:00:23.9]} 0-1

[Event "*** Titled Tuesday Blitz"]
[Site "Chess.com"]
[Date "2019.11.05"]
[Round "6"]
[White "marianokar"]
[Black "FelixJoseYnojosa"]
[Result "0-1"]
[WhiteElo "2471"]
[BlackElo "2634"]
[TimeControl "180+2"]
[EndTime "14:21:41 PST"]
[Termination "FelixJoseYnojosa won on time"]

1. d4 {[%clk 0:03:01.9]} 1... Nf6 {[%clk 0:02:59.8]} 2. c4 {[%clk 0:03:01.2]}
2... e6 {[%clk 0:03:01.1]} 3. Nc3 {[%clk 0:03:02.2]} 3... d5 {[%clk 0:03:02.4]}
4. cxd5 {[%clk 0:03:02]} 4... exd5 {[%clk 0:03:04.3]} 5. Bg5 {[%clk 0:03:03]}
5... c6 {[%clk 0:03:05.7]} 6. e3 {[%clk 0:03:04.1]} 6... Bd6 {[%clk 0:03:07]} 7.
Bd3 {[%clk 0:03:04.3]} 7... h6 {[%clk 0:03:08.4]} 8. Bh4 {[%clk 0:03:04.2]} 8...
O-O {[%clk 0:03:09.3]} 9. Nge2 {[%clk 0:03:03.9]} 9... Re8 {[%clk 0:03:09.5]}
10. Qc2 {[%clk 0:03:03.8]} 10... a5 {[%clk 0:03:09.8]} 11. Bg3 {[%clk
0:02:56.2]} 11... Bf8 {[%clk 0:03:09.2]} 12. O-O {[%clk 0:02:38.1]} 12... b5
{[%clk 0:03:08.8]} 13. a3 {[%clk 0:02:32.4]} 13... Ba6 {[%clk 0:02:35.2]} 14.
Rfc1 {[%clk 0:02:10.7]} 14... Nbd7 {[%clk 0:02:19.1]} 15. Nf4 {[%clk 0:01:59.8]}
15... Qb6 {[%clk 0:02:11]} 16. Nce2 {[%clk 0:01:55.9]} 16... Rac8 {[%clk
0:02:10.5]} 17. Bf5 {[%clk 0:01:54.9]} 17... b4 {[%clk 0:02:03.9]} 18. axb4
{[%clk 0:01:53]} 18... axb4 {[%clk 0:01:58.3]} 19. Qa4 {[%clk 0:01:25]} 19...
Bb5 {[%clk 0:01:43.9]} 20. Qa7 {[%clk 0:01:25.7]} 20... Rcd8 {[%clk 0:00:05.5]}
21. Bd3 {[%clk 0:00:48.9]} 21... Qxa7 {[%clk 0:00:04.4]} 22. Rxa7 {[%clk
0:00:48]} 22... Bxd3 {[%clk 0:00:04.1]} 23. Nxd3 {[%clk 0:00:48.8]} 23... Rc8
{[%clk 0:00:03.9]} 24. Bc7 {[%clk 0:00:36.4]} 24... c5 {[%clk 0:00:04.3]} 25.
dxc5 {[%clk 0:00:33.3]} 25... Ne4 {[%clk 0:00:05.7]} 26. c6 {[%clk 0:00:21.5]}
26... Ndc5 {[%clk 0:00:07]} 27. Nxc5 {[%clk 0:00:17.9]} 27... Bxc5 {[%clk
0:00:07.4]} 28. Rb7 {[%clk 0:00:18.8]} 28... Re6 {[%clk 0:00:08.3]} 29. Nd4
{[%clk 0:00:18]} 29... Rf6 {[%clk 0:00:07.9]} 30. f3 {[%clk 0:00:17.7]} 30...
Ng5 {[%clk 0:00:07.6]} 31. Be5 {[%clk 0:00:16.6]} 31... Bxd4 {[%clk 0:00:08.3]}
32. Bxf6 {[%clk 0:00:16.8]} 32... Bxf6 {[%clk 0:00:09.1]} 33. Rxb4 {[%clk
0:00:12.7]} 33... Ne6 {[%clk 0:00:09.8]} 34. Kf2 {[%clk 0:00:11.6]} 34... Kh7
{[%clk 0:00:10.9]} 35. Rb7 {[%clk 0:00:11.9]} 35... d4 {[%clk 0:00:11.6]} 36. e4
{[%clk 0:00:09.1]} 36... d3 {[%clk 0:00:13.1]} 37. Rd1 {[%clk 0:00:05.3]} 37...
Bd4+ {[%clk 0:00:13.4]} 38. Kg3 {[%clk 0:00:04]} 38... Be5+ {[%clk 0:00:14.7]}
39. Kg4 {[%clk 0:00:03.3]} 39... Rxc6 {[%clk 0:00:15.3]} 40. Rxd3 {[%clk
0:00:03.9]} 40... Kg6 {[%clk 0:00:16.6]} 41. g3 {[%clk 0:00:04.5]} 41... h5+
{[%clk 0:00:17.9]} 42. Kh3 {[%clk 0:00:05.6]} 42... Rc2 {[%clk 0:00:19.4]} 43.
f4 {[%clk 0:00:06.2]} 43... Bxf4 {[%clk 0:00:20.9]} 44. Rb6 {[%clk 0:00:02.5]}
44... Be5 {[%clk 0:00:21.7]} 45. Rd5 {[%clk 0:00:02.8]} 45... Bf6 {[%clk
0:00:22.7]} 0-1

[Event "*** Titled Tuesday Blitz"]
[Site "Chess.com"]
[Date "2019.11.05"]
[Round "6"]
[White "WorldChampionBulletChess"]
[Black "davigator"]
[Result "1/2-1/2"]
[WhiteElo "2100"]
[BlackElo "2299"]
[TimeControl "180+2"]
[EndTime "14:21:42 PST"]
[Termination "Game drawn by repetition"]

1. c4 {[%clk 0:03:01.9]} 1... e5 {[%clk 0:02:58.1]} 2. Nf3 {[%clk 0:03:03.4]}
2... Nc6 {[%clk 0:02:57.5]} 3. d3 {[%clk 0:03:05]} 3... Nf6 {[%clk 0:02:56.7]}
4. g3 {[%clk 0:03:05.5]} 4... h6 {[%clk 0:02:57.5]} 5. Bg2 {[%clk 0:03:06.1]}
5... d5 {[%clk 0:02:58.7]} 6. cxd5 {[%clk 0:03:06.5]} 6... Nxd5 {[%clk
0:02:59.9]} 7. O-O {[%clk 0:03:08.4]} 7... Be7 {[%clk 0:02:57.6]} 8. Nc3 {[%clk
0:03:08.8]} 8... Be6 {[%clk 0:02:58.2]} 9. Bd2 {[%clk 0:03:09.8]} 9... O-O
{[%clk 0:02:58.8]} 10. Rc1 {[%clk 0:03:00.4]} 10... Qd7 {[%clk 0:02:57.8]} 11.
a3 {[%clk 0:02:59]} 11... a6 {[%clk 0:02:56.9]} 12. Na4 {[%clk 0:02:58.9]} 12...
Rab8 {[%clk 0:02:56.8]} 13. Nc5 {[%clk 0:02:59.8]} 13... Bxc5 {[%clk 0:02:57]}
14. Rxc5 {[%clk 0:03:01.7]} 14... f6 {[%clk 0:02:54.3]} 15. Qb1 {[%clk
0:02:36.2]} 15... Qd6 {[%clk 0:02:50.8]} 16. b4 {[%clk 0:02:36.7]} 16... Rfe8
{[%clk 0:02:49.5]} 17. Rfc1 {[%clk 0:02:26.5]} 17... Rbd8 {[%clk 0:02:46.1]} 18.
R1c2 {[%clk 0:02:26.5]} 18... Rd7 {[%clk 0:02:46.4]} 19. a4 {[%clk 0:02:03.5]}
19... Nd4 {[%clk 0:02:43.2]} 20. Nxd4 {[%clk 0:02:03.5]} 20... exd4 {[%clk
0:02:43.8]} 21. b5 {[%clk 0:02:03.5]} 21... Bf7 {[%clk 0:02:28.8]} 22. bxa6
{[%clk 0:01:53.9]} 22... Qxa6 {[%clk 0:02:28.1]} 23. Bf3 {[%clk 0:01:26.7]}
23... b6 {[%clk 0:02:26.3]} 24. Rc6 {[%clk 0:01:27]} 24... Qxa4 {[%clk
0:02:25.4]} 25. R2c4 {[%clk 0:01:25]} 25... Qa3 {[%clk 0:02:20.1]} 26. Rxd4
{[%clk 0:01:20.3]} 26... Red8 {[%clk 0:02:17.8]} 27. Bc1 {[%clk 0:01:08.7]}
27... Qe7 {[%clk 0:02:05.5]} 28. e4 {[%clk 0:00:39.7]} 28... Nb4 {[%clk
0:00:58.9]} 29. Rxb4 {[%clk 0:00:38.8]} 29... Rxd3 {[%clk 0:00:59.3]} 30. Be3
{[%clk 0:00:31.5]} 30... Be8 {[%clk 0:00:54.7]} 31. Rc2 {[%clk 0:00:30.4]} 31...
Bf7 {[%clk 0:00:49.8]} 32. Qc1 {[%clk 0:00:27.9]} 32... Qxb4 {[%clk 0:00:47.9]}
33. Rxc7 {[%clk 0:00:26.5]} 33... Rb3 {[%clk 0:00:43]} 34. Kg2 {[%clk
0:00:08.7]} 34... Rb1 {[%clk 0:00:41]} 35. Qc6 {[%clk 0:00:09]} 35... Qe1 {[%clk
0:00:41.7]} 36. Bg4 {[%clk 0:00:04.4]} 36... Qf1+ {[%clk 0:00:39]} 37. Kf3
{[%clk 0:00:02.7]} 37... Qh1+ {[%clk 0:00:37]} 38. Kf4 {[%clk 0:00:04.2]} 38...
Re8 {[%clk 0:00:22.7]} 39. Rxf7 {[%clk 0:00:04.2]} 39... Kxf7 {[%clk 0:00:22]}
40. Bh5+ {[%clk 0:00:05.4]} 40... g6 {[%clk 0:00:22.7]} 41. Qd7+ {[%clk
0:00:05.7]} 41... Re7 {[%clk 0:00:21.1]} 42. Bxg6+ {[%clk 0:00:06.4]} 42... Kxg6
{[%clk 0:00:21.6]} 43. Qxe7 {[%clk 0:00:07.9]} 43... Qxh2 {[%clk 0:00:20.2]} 44.
Qe8+ {[%clk 0:00:07.6]} 44... Kg7 {[%clk 0:00:21]} 45. Qe7+ {[%clk 0:00:08.3]}
45... Kg6 {[%clk 0:00:21.9]} 46. Qe8+ {[%clk 0:00:09.3]} 46... Kg7 {[%clk
0:00:23]} 47. Qe7+ {[%clk 0:00:10.5]} 47... Kg6 {[%clk 0:00:21.5]} 1/2-1/2

[Event "*** Titled Tuesday Blitz"]
[Site "Chess.com"]
[Date "2019.11.05"]
[Round "6"]
[White "gmcorrales"]
[Black "Nazar-Nazar"]
[Result "1-0"]
[WhiteElo "2853"]
[BlackElo "2498"]
[TimeControl "180+2"]
[EndTime "14:21:52 PST"]
[Termination "gmcorrales won by resignation"]

1. e4 {[%clk 0:02:51.4]} 1... c6 {[%clk 0:02:58.3]} 2. Nf3 {[%clk 0:02:53]} 2...
d5 {[%clk 0:02:59.4]} 3. Nc3 {[%clk 0:02:54.7]} 3... Bg4 {[%clk 0:03:00.5]} 4.
h3 {[%clk 0:02:55.5]} 4... Bxf3 {[%clk 0:03:01.7]} 5. Qxf3 {[%clk 0:02:57.4]}
5... Nf6 {[%clk 0:03:02.8]} 6. d3 {[%clk 0:02:56.3]} 6... e6 {[%clk 0:03:03.6]}
7. Qg3 {[%clk 0:02:57.4]} 7... g6 {[%clk 0:02:52.6]} 8. Be2 {[%clk 0:02:57.6]}
8... Bg7 {[%clk 0:02:53.4]} 9. f4 {[%clk 0:02:57.9]} 9... O-O {[%clk 0:02:41.8]}
10. O-O {[%clk 0:02:58.2]} 10... dxe4 {[%clk 0:02:23.1]} 11. dxe4 {[%clk
0:02:59.2]} 11... Qd4+ {[%clk 0:02:23.8]} 12. Qe3 {[%clk 0:02:45.8]} 12... Qb4
{[%clk 0:02:10]} 13. Kh1 {[%clk 0:02:42.6]} 13... Nbd7 {[%clk 0:01:53.8]} 14. a3
{[%clk 0:02:39.1]} 14... Qb6 {[%clk 0:01:54.5]} 15. Qf3 {[%clk 0:02:40.1]} 15...
Qc7 {[%clk 0:01:34.1]} 16. Be3 {[%clk 0:02:38.5]} 16... Rad8 {[%clk 0:01:27.2]}
17. g4 {[%clk 0:02:39.1]} 17... b5 {[%clk 0:00:54.8]} 18. Qg2 {[%clk 0:02:11.9]}
18... a5 {[%clk 0:00:54.4]} 19. g5 {[%clk 0:02:11.6]} 19... Ne8 {[%clk
0:00:46.7]} 20. e5 {[%clk 0:02:12.3]} 20... Nb6 {[%clk 0:00:47.9]} 21. Ne4
{[%clk 0:02:08.2]} 21... Nd5 {[%clk 0:00:48.5]} 22. Bc5 {[%clk 0:02:09.1]} 22...
a4 {[%clk 0:00:40.9]} 23. Qf3 {[%clk 0:02:05.8]} 23... Ne7 {[%clk 0:00:32.7]}
24. Rad1 {[%clk 0:01:59.2]} 24... Rd5 {[%clk 0:00:32.9]} 25. c4 {[%clk 0:02:00]}
25... Rxc5 {[%clk 0:00:21.9]} 26. Nxc5 {[%clk 0:02:00.6]} 26... Nf5 {[%clk
0:00:23.8]} 27. Nd7 {[%clk 0:01:55]} 27... bxc4 {[%clk 0:00:19.2]} 28. Bxc4
{[%clk 0:01:56.3]} 28... c5 {[%clk 0:00:20.3]} 29. Nxf8 {[%clk 0:01:56.5]} 29...
Bxf8 {[%clk 0:00:20.8]} 30. Bb5 {[%clk 0:01:56.9]} 30... Qb8 {[%clk 0:00:18.6]}
31. Bxe8 {[%clk 0:01:53.5]} 31... Qxe8 {[%clk 0:00:18.8]} 32. Rf2 {[%clk
0:01:49.5]} 32... Kg7 {[%clk 0:00:16.9]} 33. Rfd2 {[%clk 0:01:49.9]} 33... Qb5
{[%clk 0:00:14.6]} 34. Kh2 {[%clk 0:01:42]} 34... Nd4 {[%clk 0:00:13.6]} 35. Qe4
{[%clk 0:01:41.5]} 35... Qb3 {[%clk 0:00:07.6]} 36. Rxd4 {[%clk 0:01:38.1]}
36... cxd4 {[%clk 0:00:09.5]} 37. Qxd4 {[%clk 0:01:36.6]} 37... Bc5 {[%clk
0:00:10.2]} 38. Qd3 {[%clk 0:01:17.7]} 38... Qxb2+ {[%clk 0:00:10.7]} 39. Rd2
{[%clk 0:01:19.1]} 39... Qc1 {[%clk 0:00:09.8]} 40. Kg3 {[%clk 0:00:44.9]} 40...
Bxa3 {[%clk 0:00:10]} 41. Rc2 {[%clk 0:00:32]} 41... Qg1+ {[%clk 0:00:09.4]} 42.
Rg2 {[%clk 0:00:32.9]} 42... Qe1+ {[%clk 0:00:09.9]} 43. Kg4 {[%clk 0:00:31.1]}
43... Bb4 {[%clk 0:00:07.4]} 44. h4 {[%clk 0:00:31.5]} 44... a3 {[%clk
0:00:07.5]} 45. Qe2 {[%clk 0:00:26.7]} 45... Qb1 {[%clk 0:00:06.8]} 46. h5
{[%clk 0:00:27.7]} 46... Qf5+ {[%clk 0:00:07.4]} 47. Kh4 {[%clk 0:00:28.8]}
47... Qxf4+ {[%clk 0:00:06.7]} 48. Rg4 {[%clk 0:00:28.2]} 48... Qd2 {[%clk
0:00:07.2]} 49. h6+ {[%clk 0:00:29.4]} 49... Kg8 {[%clk 0:00:08.5]} 50. Qxd2
{[%clk 0:00:30.2]} 50... Bxd2 {[%clk 0:00:09.2]} 51. Rd4 {[%clk 0:00:31.6]}
51... Bb4 {[%clk 0:00:09.9]} 52. Rxb4 {[%clk 0:00:32.8]} 1-0